fUSD/lending_fUSD_20250823
["ID","MTS","AMOUNT","RATE_DAILY","PERIOD"]
[380982519,1755916231931,-500.0,0.00010743,2]
[380982520,1755916231941,-1200.0,0.00010747,2]
[380982521,1755916231956,-1848.33673408,0.00010748,2]
[380982522,1755916231968,-89.45498026,0.00010748,2]
[380982523,1755916231977,-300.0,0.00010756,2]
[380982524,1755916231987,-2020.8,0.00010757,2]
[380982525,1755916231996,-231.83,0.00010764,2]
[380982526,1755916232007,-1232.07342868,0.00010765,2]
[380982527,1755916232017,-469.0,0.00010773,2]
[380982528,1755916232026,-2300.6424,0.00010774,2]
[380982529,1755916232035,-1895.27,0.00010783,2]
[380982530,1755916232045,-151.0,0.00010785,2]
[380982531,1755916232054,-151.0,0.00010785,2]
[380982532,1755916232063,-151.0,0.00010785,2]
[380982533,1755916232074,-151.0,0.00010785,2]
[380982534,1755916232083,-151.0,0.00010785,2]
[380982535,1755916232092,-151.0,0.00010785,2]
[380982536,1755916232101,-151.0,0.00010785,2]
[380982537,1755916232111,-266.65135857,0.00010785,2]
[380982538,1755916232120,-500.0,0.00010785,2]
[380982539,1755916232129,-201.44889061,0.00010785,2]
[380982540,1755916232138,-2500.0,0.00010792,2]
[380982541,1755916232147,-300.0,0.000108,3]
[380982542,1755916232156,-2000.0,0.000108,2]
[380982543,1755916232165,-2000.0,0.000108,3]
[380982544,1755916232174,-2000.0,0.000108,4]
[380982545,1755916232184,-2348.8,0.00010801,2]
[380982546,1755916232193,-501.65,0.00010804,2]
[380982547,1755916232204,-150.0,0.00010808,2]
[380982548,1755916232213,-1343.87894191,0.00010809,2]
[380982549,1755916232239,-1156.12105809,0.00010809,2]
[380982550,1755916232248,-2006.46453131,0.00010818,2]
[380982551,1755916232277,-493.53546869,0.00010818,2]
[380982552,1755916232287,-1860.0,0.00010827,2]
[380982554,1755916232296,-2329.84,0.00010836,2]
[380982556,1755916232306,-2054.3,0.00010845,2]
[380982558,1755916232315,-152.15470954,0.00010845,2]
[380982560,1755916232324,-1500.22587294,0.00010853,2]
[380982562,1755916232333,-596.55699314,0.00010862,2]
[380982565,1755916232343,-1851.52766229,0.00010862,2]
[380982567,1755916232354,-1300.0,0.00010871,2]
[380982569,1755916232363,-2100.0,0.0001088,2]
[380982570,1755916232373,-612.48,0.00010889,2]
[380982572,1755916232382,-824.08915298,0.00010896,2]
[380982575,1755916232393,-1700.0,0.00010897,2]
[380982578,1755916232403,-176.50495617,0.000109,2]
[380982580,1755916232412,-300.0,0.000109,3]
[380982582,1755916232421,-815.70156922,0.000109,2]
[380982584,1755916232431,-836.23789142,0.000109,2]
[380982586,1755916232441,-981.04177794,0.000109,2]
[380982589,1755916232453,-553.51206383,0.000109,2]
[380982591,1755916232462,-1721.12408039,0.00010906,2]
[380982592,1755916232472,-1177.2864522,0.00010915,2]
[380982593,1755916232481,-176.50495614,0.00010918,2]
[380982595,1755916232491,-1700.0,0.00010924,2]
[380982596,1755916232500,-602.91,0.00010933,2]
[380982597,1755916232510,-176.50495614,0.00010936,2]
[380982598,1755916232519,-1673.43,0.00010941,2]
[380982599,1755916232529,-1107.1,0.0001095,2]
[380982600,1755916232540,-176.50495614,0.00010954,2]
[380982601,1755916232549,-1245.51379974,0.00010959,2]
[380982602,1755916232559,-500.0,0.00010973,2]
[380982603,1755916232569,-500.0,0.00010973,2]
[380982604,1755916232579,-500.0,0.00010973,2]
[380982605,1755916232588,-504.02717266,0.00010973,2]
[380982606,1755916232599,-501.26788159,0.00010973,2]
[380982607,1755916232608,-500.0,0.00010973,2]
[380982608,1755916232619,-500.0,0.00010973,2]
[380982609,1755916232628,-288.9464153,0.0001099,2]
[380982610,1755916232638,-288.9464153,0.0001099,2]
[380982611,1755916232651,-288.9464153,0.0001099,2]
[380982612,1755916232661,-155.37358068,0.00010999,2]
[380982613,1755916232670,-167.34036071,0.00010999,2]
[380982614,1755916232680,-394.45304709,0.00010999,2]
[380982615,1755916232691,-150.42066957,0.00010999,2]
[380982616,1755916232703,-7501.36748307,0.00011,2]
[380982617,1755916232712,-68243.74013875,0.00011,2]
[380982618,1755916232747,-3126.77846771,0.00011,2]
[380982619,1755916232759,-3848.56701966,0.00011,2]
[380982620,1755916232770,-1400.0,0.00011,2]
[380982621,1755916232791,-751.14328085,0.00011,2]
[380982622,1755916232803,-1900.80211902,0.00011,2]
[380982646,1755916238107,-1269.9284,0.00011,2]
[380982647,1755916238162,-2247.4,0.00011,2]
[380982649,1755916238219,-771.91215,0.00011,2]
[380982651,1755916238230,-570.79316396,0.00011,2]
[380982653,1755916238241,-590.58512303,0.00011,2]
[380982658,1755916238276,-11691.9645743,0.00011,2]
[380982690,1755916239974,-11624.0,0.00011,2]
[380982691,1755916239986,-4755.0,0.00011,2]
[380982692,1755916240002,-310787.00527189,0.00011,2]
[380982693,1755916240012,-1629537.91814983,0.00011,2]
[380982694,1755916240023,-487.81655133,0.00011,2]
[380982695,1755916240618,-1123.42602351,0.00011,2]
[380982696,1755916240876,-0.003437,0.00011,2]
[380982697,1755916240888,-358.125,0.00011,2]
[380982698,1755916240900,-326.67849396,0.00011,2]
[380982709,1755916242888,-534.3999998,0.00011,2]
[380982710,1755916242942,-1595.48774843,0.00011,2]
[380982711,1755916242997,-8645.83483231,0.00011,2]
[380982712,1755916243109,-279.30188782,0.00011,2]
[380982713,1755916243121,-2185.92647066,0.00011,2]
[380982714,1755916243176,-659.55599547,0.00011,2]
[380982715,1755916243277,-91821.5376392,0.00011,2]
[380982723,1755916245785,-35982.61807218,0.00011,2]
[380982724,1755916245840,-366.42800128,0.00011,2]
[380982725,1755916245949,-873.95291118,0.00011,2]
[380982726,1755916246057,-2152.15,0.00011,2]
[380982727,1755916246166,-7905.48214115,0.00011,2]
[380982728,1755916246178,-142080.0000006,0.00011,2]
[380982729,1755916246190,-647.22640714,0.00011,2]
[380982730,1755916246202,-409.14193754,0.00011,2]
[380982731,1755916288847,1033.98756985,0.00015,7]
[380982733,1755916405824,2000.0,0.00028662,120]
[380982735,1755916530168,-200.15041903,0.0001065,2]
[380982736,1755916552112,-49.84958097,0.0001065,2]
[380982737,1755916552147,-51.30083806,0.00010679,2]
[380982738,1755916563576,160.0,0.00010585,7]
[380982739,1755916626762,-298.89,0.00010564,2]
[380982740,1755916635167,-171.68147965,0.00010564,2]
[380982741,1755916642563,-391.44,0.00010564,2]
[380982742,1755916652241,-200.0,0.00010564,2]
[380982744,1755916666300,-150.19644688,0.00010468,2]
[380982745,1755916673097,-159.92796578,0.00010298,2]
[380982746,1755916674249,-400.0,0.00010298,2]
[380982747,1755916681406,-358.89174501,0.00010298,2]
[380982748,1755916682997,-25.42971079,0.00010298,2]
[380982749,1755916683021,-406.52057842,0.00010298,2]
[380982751,1755916690128,-7.86355312,0.00010468,2]
[380982752,1755916690179,-134.99016857,0.00010485,2]
[380982753,1755916711778,-23.06983143,0.00010485,2]
[380982754,1755916711822,-103.86033714,0.00010503,2]
[380982755,1755916712663,1057.32152,0.000287,120]
[380982756,1755916733073,-54.19966286,0.00010503,2]
[380982757,1755916733106,-42.60067428,0.0001052,2]
[380982758,1755916742783,-173.04465727,0.00010322,2]
[380982759,1755916744402,-112.03534273,0.00010322,2]
[380982760,1755916804312,-187.96465727,0.00010345,2]
[380982761,1755916806686,-300.0,0.00010345,2]
[380982762,1755916809213,-162.06,0.00010345,2]
[380982763,1755916811846,-298.56545038,0.00010345,2]
[380982764,1755916813641,-51.40989235,0.00010345,2]
[380982766,1755916891304,-67.49647558,0.0001052,2]
[380982767,1755916891326,-47.96285014,0.0001052,2]
[380982768,1755916898281,-45.08872909,0.00010564,2]
[380982769,1755916898307,-102.03979126,0.00010564,2]
[380982770,1755916906836,-162.55,0.00010679,2]
[380982771,1755916939006,448.8,0.00028767,120]
[380982772,1755916994679,400.0,0.00028767,120]
[380982773,1755917065501,-162.06,0.00010324,2]
[380982774,1755917066166,-37.94,0.00010324,2]
[380982775,1755917115113,150.0,9.888e-05,2]
[380982776,1755917115174,150.0,9.949e-05,2]
[380982777,1755917115242,150.0,0.0001001,2]
[380982778,1755917116460,150.0,9.888e-05,2]
[380982779,1755917116525,150.0,9.913e-05,2]
[380982780,1755917116594,150.0,9.938e-05,2]
[380982781,1755917116934,150.0,9.963e-05,2]
[380982782,1755917116986,150.0,9.988e-05,2]
[380982783,1755917117047,150.0,0.00010013,2]
[380982784,1755917117112,150.0,0.00010037,2]
[380982785,1755917119641,150.0,9.888e-05,2]
[380982786,1755917119694,150.0,9.922e-05,2]
[380982787,1755917119766,150.0,9.956e-05,2]
[380982788,1755917119851,150.0,9.991e-05,2]
[380982789,1755917119911,150.0,0.00010025,2]
[380982790,1755917125614,150.0,9.888e-05,2]
[380982791,1755917125686,150.0,9.979e-05,2]
[380982792,1755917133431,150.0,9.888e-05,2]
[380982793,1755917133477,150.0,9.918e-05,2]
[380982794,1755917133532,150.0,9.949e-05,2]
[380982795,1755917133907,150.0,9.979e-05,2]
[380982796,1755917133960,150.0,0.0001001,2]
[380982797,1755917134051,150.0,0.0001004,2]
[380982798,1755917136006,150.0,9.888e-05,2]
[380982799,1755917136040,150.0,9.966e-05,2]
[380982800,1755917137052,150.37348372,9.888e-05,2]
[380982801,1755917137141,150.0,9.888e-05,2]
[380982802,1755917137305,150.0,0.0001001,2]
[380982803,1755917138832,150.0,9.888e-05,2]
[380982804,1755917139766,150.0,9.888e-05,2]
[380982805,1755917145181,150.0,9.888e-05,2]
[380982806,1755917146343,150.0,9.888e-05,2]
[380982807,1755917146394,150.0,9.922e-05,2]
[380982808,1755917146446,150.0,9.956e-05,2]
[380982809,1755917146488,150.0,9.991e-05,2]
[380982810,1755917146558,150.0,0.00010025,2]
[380982811,1755917148939,150.0,9.888e-05,2]
[380982812,1755917149002,150.0,9.998e-05,2]
[380982813,1755917149671,150.3645582,9.888e-05,2]
[380982814,1755917150832,2437.08,0.00021,30]
[380982815,1755917151083,150.0,9.888e-05,2]
[380982816,1755917151136,150.0,9.938e-05,2]
[380982817,1755917151190,150.0,9.988e-05,2]
[380982818,1755917151267,150.0,0.00010037,2]
[380982819,1755917156933,-150.0,0.00010045,2]
[380982820,1755917156956,-25.88,0.00010059,2]
[380982821,1755917159125,-124.12,0.00010059,2]
[380982822,1755917159147,-150.0,0.00010059,2]
[380982823,1755917159170,-8.16642307,0.00010062,2]
[380982824,1755917164726,-141.83357693,0.00010062,2]
[380982825,1755917164751,-150.0,0.00010071,2]
[380982826,1755917164773,-150.0,0.00010071,2]
[380982827,1755917164794,-150.0,0.00010071,2]
[380982828,1755917164815,-150.0,0.00010071,2]
[380982829,1755917164837,-150.0,0.00010087,2]
[380982830,1755917164858,-150.0,0.00010087,2]
[380982831,1755917164880,-150.0,0.00010094,2]
[380982832,1755917164901,-121.52342132,0.00010094,2]
[380982833,1755917166957,-28.47657868,0.00010094,2]
[380982834,1755917166979,-150.0,0.00010101,2]
[380982835,1755917167003,-150.0,0.00010107,2]
[380982836,1755917167026,-49.18329832,0.00010112,2]
[380982837,1755917168492,-100.81670168,0.00010112,2]
[380982838,1755917168513,-150.0,0.00010123,2]
[380982839,1755917168534,-150.0,0.00010128,2]
[380982840,1755917168560,-150.0,0.00010128,2]
[380982841,1755917168585,-150.0,0.00010132,2]
[380982842,1755917168612,-150.0,0.00010132,2]
[380982843,1755917168635,-150.0,0.00010132,2]
[380982844,1755917168658,-150.0,0.00010137,2]
[380982845,1755917168679,-49.18329832,0.00010137,2]
[380982846,1755917170492,-100.81670168,0.00010137,2]
[380982847,1755917170519,-199.18329832,0.00010161,2]
[380982848,1755917172597,-300.81670168,0.00010161,2]
[380982849,1755917172625,-18.18329832,0.00010161,2]
[380982850,1755917174148,-281.81670168,0.00010161,2]
[380982851,1755917174171,-18.18329832,0.00010162,2]
[380982852,1755917176496,-131.81670168,0.00010162,2]
[380982853,1755917176520,-150.0,0.00010162,2]
[380982854,1755917176544,-150.0,0.00010162,2]
[380982855,1755917176567,-150.0,0.00010162,2]
[380982856,1755917176589,-150.0,0.00010162,2]
[380982857,1755917176612,-150.0,0.00010187,2]
[380982858,1755917176634,-150.0,0.00010187,2]
[380982859,1755917176655,-150.0,0.00010193,2]
[380982860,1755917176677,-150.0,0.00010193,2]
[380982861,1755917176701,-150.0,0.00010197,2]
[380982862,1755917176722,-150.0,0.00010197,2]
[380982863,1755917176744,-150.0,0.00010202,2]
[380982864,1755917176766,-8.53132395,0.00010212,2]
[380982865,1755917180300,-141.46867605,0.00010212,2]
[380982866,1755917180323,-150.0,0.00010217,2]
[380982867,1755917180706,-106.52260195,0.00010223,2]
[380982868,1755917183967,-43.47739805,0.00010223,2]
[380982869,1755917183991,-150.0,0.00010231,2]
[380982870,1755917184020,-6.52260195,0.00010231,2]
[380982871,1755917190416,-180.197459,0.00010137,2]
[380982872,1755917192063,-209.390837,0.00010137,2]
[380982873,1755917194974,-200.0,0.00010137,2]
[380982874,1755917197198,-1727.19529394,0.00010137,2]
[380982875,1755917199682,-1424.43748025,0.00010137,2]
[380982876,1755917202948,-33414.14960349,0.00010137,2]
[380982877,1755917204680,-1241.48220755,0.00010137,2]
[380982878,1755917206735,-197.544329,0.00010136,2]
[380982879,1755917208328,-237.115671,0.00010136,2]
[380982880,1755917211615,-76.34,0.00010136,2]
[380982881,1755917211638,-98.0,0.00010137,2]
[380982882,1755917214856,-399.91564548,0.00010137,2]
[380982883,1755917215440,-19104.46719009,0.00010137,2]
[380982884,1755917218211,1445.18,9.681e-05,2]
[380982885,1755917228054,-151.10359013,0.00010131,2]
[380982886,1755917228109,-21540.60495554,0.00010137,2]
[380982887,1755917255673,-421.7,0.00010086,2]
[380982888,1755917283687,-30.012439,0.00010086,2]
[380982889,1755917283734,-339.975122,0.00010137,2]
[380982890,1755917304532,175.29,9.674e-05,2]
[380982891,1755917311084,-400.0,0.00010137,2]
[380982892,1755917337952,-400.0,0.00010137,2]
[380982893,1755917359479,161.81,9.964e-05,2]
[380982894,1755917366072,-400.0,0.00010137,2]
[380982895,1755917393088,-268.45636897,0.00010137,2]
[380982896,1755917398754,1500.0,9.674e-05,2]
[380982897,1755917420145,-271.31349496,0.00010137,2]
[380982898,1755917426276,166.16,9.664e-05,2]
[380982910,1755917432010,-2290.88551108,0.00010137,2]
[380982918,1755917432069,-698.10570611,0.00010137,2]
[380982924,1755917432118,-295.0,0.00010137,2]
[380982926,1755917432130,-285.88963767,0.00010137,2]
[380982930,1755917432225,-2372.45190067,0.00010137,2]
[380982931,1755917432235,-143.47739805,0.00010231,2]
[380982932,1755917432246,-150.0,0.00010237,2]
[380982933,1755917432255,-150.0,0.00010237,2]
[380982934,1755917432266,-1200.0,0.00010252,2]
[380982935,1755917432276,-300.0,0.00010253,2]
[380982936,1755917432286,-300.0,0.00010253,2]
[380982937,1755917432295,-300.0,0.00010253,2]
[380982938,1755917432305,-150.0,0.00010254,2]
[380982939,1755917432316,-150.0,0.00010254,2]
[380982940,1755917432326,-150.0,0.00010254,2]
[380982941,1755917432336,-150.0,0.00010254,2]
[380982942,1755917432346,-150.0,0.00010254,2]
[380982943,1755917432356,-150.0,0.00010262,2]
[380982944,1755917432365,-150.0,0.00010265,2]
[380982945,1755917432375,-150.0,0.00010265,2]
[380982946,1755917432385,-150.0,0.0001028,2]
[380982947,1755917432395,-150.0,0.00010284,2]
[380982948,1755917432404,-150.0,0.00010287,2]
[380982949,1755917432414,-150.0,0.00010287,2]
[380982950,1755917432423,-150.0,0.000103,2]
[380982951,1755917432433,-150.0,0.000103,2]
[380982952,1755917432443,-150.0,0.00010312,2]
[380982953,1755917432452,-150.0,0.00010315,2]
[380982954,1755917432461,-150.0,0.00010315,2]
[380982955,1755917432471,-150.0,0.00010327,2]
[380982956,1755917432481,-150.0,0.00010334,2]
[380982957,1755917432491,-150.0,0.00010334,2]
[380982958,1755917432502,-150.0,0.00010337,2]
[380982959,1755917432511,-150.0,0.00010337,2]
[380982960,1755917432521,-150.0,0.00010345,2]
[380982961,1755917432531,-150.0,0.00010345,2]
[380982962,1755917432540,-150.0,0.00010359,2]
[380982963,1755917432549,-150.0,0.00010362,2]
[380982964,1755917432559,-150.0,0.00010368,2]
[380982965,1755917432569,-150.0,0.00010368,2]
[380982966,1755917432579,-150.0,0.00010376,2]
[380982967,1755917432588,-150.0,0.00010376,2]
[380982968,1755917432598,-150.0,0.00010376,2]
[380982969,1755917432607,-150.0,0.00010387,2]
[380982970,1755917432617,-150.0,0.00010387,2]
[380982971,1755917432626,-150.0,0.00010403,2]
[380982972,1755917432636,-150.0,0.00010403,2]
[380982973,1755917432645,-150.0,0.00010406,2]
[380982974,1755917432654,-150.0,0.00010412,2]
[380982975,1755917432663,-150.0,0.00010412,2]
[380982976,1755917432673,-150.0,0.00010437,2]
[380982977,1755917432683,-150.0,0.00010437,2]
[380982978,1755917432693,-150.0,0.00010437,2]
[380982979,1755917432703,-150.0,0.00010437,2]
[380982980,1755917432713,-150.0,0.00010437,2]
[380982981,1755917432722,-150.0,0.00010437,2]
[380982982,1755917432732,-150.0,0.00010437,2]
[380982983,1755917432741,-150.0,0.00010437,2]
[380982984,1755917432753,-150.0,0.00010437,2]
[380982985,1755917432763,-150.0,0.00010437,2]
[380982986,1755917432777,-150.0,0.00010437,2]
[380982987,1755917432786,-150.0,0.00010462,2]
[380982988,1755917432796,-150.0,0.00010468,2]
[380982989,1755917432806,-150.0,0.00010471,2]
[380982990,1755917432816,-150.0,0.00010471,2]
[380982991,1755917432826,-150.0,0.00010487,2]
[380982992,1755917432836,-150.0,0.00010487,2]
[380982993,1755917432847,-150.0,0.00010498,2]
[380982994,1755917432857,-150.0,0.00010498,2]
[380982995,1755917432867,-150.0,0.00010498,2]
[380982996,1755917432877,-150.0,0.00010506,2]
[380982997,1755917432887,-150.0,0.00010506,2]
[380982998,1755917432896,-150.0,0.00010512,2]
[380982999,1755917432906,-150.0,0.00010515,2]
[380983000,1755917432916,-150.0,0.00010529,2]
[380983001,1755917432925,-150.0,0.00010529,2]
[380983002,1755917432935,-150.0,0.00010537,2]
[380983003,1755917432945,-150.0,0.00010537,2]
[380983004,1755917432955,-150.0,0.0001054,2]
[380983005,1755917432964,-150.0,0.0001054,2]
[380983006,1755917432975,-150.0,0.00010547,2]
[380983007,1755917432984,-150.0,0.00010559,2]
[380983008,1755917432994,-150.0,0.00010559,2]
[380983009,1755917433004,-150.0,0.00010562,2]
[380983010,1755917433015,-150.0,0.00010574,2]
[380983011,1755917433027,-150.0,0.00010574,2]
[380983012,1755917433037,-150.0,0.00010587,2]
[380983013,1755917433047,-150.0,0.00010587,2]
[380983014,1755917433059,-150.0,0.0001059,2]
[380983015,1755917433069,-150.0,0.00010594,2]
[380983016,1755917433081,-150.0,0.00010609,2]
[380983017,1755917433092,-150.0,0.00010609,2]
[380983018,1755917433102,-150.0,0.00010612,2]
[380983019,1755917433112,-150.0,0.0001062,2]
[380983020,1755917433123,-150.0,0.0001062,2]
[380983021,1755917433132,-150.0,0.0001062,2]
[380983022,1755917433143,-150.0,0.0001062,2]
[380983023,1755917433153,-150.0,0.0001062,2]
[380983024,1755917433164,-150.0,0.00010637,2]
[380983025,1755917433174,-150.0,0.00010637,2]
[380983026,1755917433185,-150.0,0.00010643,2]
[380983027,1755917433195,-150.0,0.00010643,2]
[380983028,1755917433205,-150.0,0.00010651,2]
[380983029,1755917433216,-150.0,0.00010657,2]
[380983030,1755917433226,-150.0,0.00010662,2]
[380983031,1755917433237,-150.0,0.00010672,2]
[380983032,1755917433249,-150.0,0.00010677,2]
[380983033,1755917433259,-150.0,0.00010677,2]
[380983034,1755917433270,-150.0,0.00010681,2]
[380983035,1755917433280,-150.0,0.00010681,2]
[380983036,1755917433290,-150.0,0.00010687,2]
[380983037,1755917433300,-150.0,0.00010687,2]
[380983038,1755917433310,-150.0,0.00010712,2]
[380983039,1755917433320,-150.0,0.00010712,2]
[380983040,1755917433331,-150.0,0.00010712,2]
[380983041,1755917433341,-150.0,0.00010712,2]
[380983042,1755917433351,-150.0,0.00010712,2]
[380983043,1755917433362,-150.0,0.00010737,2]
[380983044,1755917433372,-150.0,0.00010737,2]
[380983045,1755917433382,-150.0,0.00010742,2]
[380983046,1755917433392,-150.0,0.00010742,2]
[380983047,1755917433402,-150.0,0.00010742,2]
[380983048,1755917433412,-150.0,0.00010746,2]
[380983049,1755917433422,-150.0,0.00010746,2]
[380983050,1755917433432,-150.0,0.00010751,2]
[380983051,1755917433442,-150.0,0.00010762,2]
[380983052,1755917433455,-150.0,0.00010767,2]
[380983053,1755917433466,-150.0,0.00010773,2]
[380983054,1755917433476,-150.0,0.0001078,2]
[380983055,1755917433486,-150.0,0.0001078,2]
[380983056,1755917433498,-150.0,0.00010787,2]
[380983057,1755917433508,-150.0,0.00010787,2]
[380983058,1755917433519,-150.0,0.00010803,2]
[380983059,1755917433529,-150.0,0.00010803,2]
[380983060,1755917433539,-150.0,0.00010803,2]
[380983061,1755917433549,-150.0,0.00010803,2]
[380983062,1755917433560,-150.0,0.00010812,2]
[380983063,1755917433571,-150.0,0.00010815,2]
[380983064,1755917433583,-150.0,0.00010815,2]
[380983065,1755917433593,-1425.0,0.00010818,2]
[380983066,1755917433603,-150.0,0.00010829,2]
[380983067,1755917433613,-19537.7048785,0.00010829,2]
[380983068,1755917433623,-150.0,0.00010834,2]
[380983069,1755917433634,-150.0,0.00010836,2]
[380983070,1755917433643,-150.0,0.00010836,2]
[380983071,1755917433654,-150.0,0.00010849,2]
[380983072,1755917433664,-150.0,0.00010849,2]
[380983073,1755917433675,-150.0,0.00010861,2]
[380983074,1755917433684,-150.0,0.00010864,2]
[380983075,1755917433699,-150.0,0.00010864,2]
[380983076,1755917433709,-150.0,0.00010864,2]
[380983077,1755917433720,-284.3978494,0.00010869,2]
[380983078,1755917433730,-166.16,0.00010872,2]
[380983079,1755917433740,-150.0,0.00010876,2]
[380983080,1755917433749,-150.0,0.00010883,2]
[380983081,1755917433760,-150.0,0.00010883,2]
[380983082,1755917433770,-150.0,0.00010886,2]
[380983083,1755917433780,-150.0,0.00010886,2]
[380983084,1755917433791,-10010.256,0.00010893,2]
[380983085,1755917433801,-534.811,0.00010893,2]
[380983086,1755917433811,-12175.33,0.00010893,2]
[380983087,1755917433822,-150.0,0.00010895,2]
[380983088,1755917433832,-150.0,0.00010895,2]
[380983089,1755917433842,-1425.0,0.00010896,2]
[380983090,1755917433853,-2821.44324892,0.000109,2]
[380983091,1755917433863,-405.36653984,0.000109,2]
[380983092,1755917433874,-1698.00326842,0.000109,2]
[380983093,1755917433885,-2020.16539715,0.000109,2]
[380983094,1755917433895,-1146.30606087,0.000109,2]
[380983095,1755917433906,-4678.37310998,0.000109,2]
[380983096,1755917433915,-188.47463398,0.000109,2]
[380983097,1755917433925,-3932.58513294,0.000109,2]
[380983098,1755917433935,-150.0,0.00010908,2]
[380983099,1755917433946,-150.0,0.00010911,2]
[380983100,1755917433956,-150.0,0.00010918,2]
[380983101,1755917433966,-150.0,0.00010918,2]
[380983102,1755917433976,-1425.0,0.00010922,2]
[380983103,1755917433987,-150.0,0.00010925,2]
[380983104,1755917433999,-150.0,0.00010925,2]
[380983105,1755917434009,-1441.78945732,0.00010932,2]
[380983106,1755917434022,-150.0,0.00010936,2]
[380983107,1755917434032,-150.0,0.00010936,2]
[380983108,1755917434042,-150.0,0.00010952,2]
[380983109,1755917434052,-150.0,0.00010952,2]
[380983110,1755917434063,-150.0,0.00010956,2]
[380983111,1755917434074,-150.0,0.00010961,2]
[380983112,1755917434084,-165.97,0.00010964,2]
[380983113,1755917434094,-500.0,0.00010973,2]
[380983114,1755917434105,-175.15585663,0.00010973,2]
[380983115,1755917434116,-511.38099268,0.00010973,2]
[380983116,1755917434126,-500.0,0.00010973,2]
[380983117,1755917434136,-500.0,0.00010973,2]
[380983118,1755917434146,-500.0,0.00010973,2]
[380983119,1755917434158,-500.0,0.00010973,2]
[380983120,1755917434169,-500.0,0.00010973,2]
[380983121,1755917434179,-500.0,0.00010973,2]
[380983122,1755917434190,-501.73664956,0.00010973,2]
[380983123,1755917434201,-500.0,0.00010973,2]
[380983124,1755917434211,-4359.4512184,0.00010984,2]
[380983125,1755917434221,-152.99636101,0.00010986,2]
[380983126,1755917434231,-261.16630616,0.00010986,2]
[380983127,1755917434241,-155.30736495,0.00010986,2]
[380983128,1755917434252,-151.76757049,0.00010986,2]
[380983129,1755917434261,-153.14124487,0.00010986,2]
[380983130,1755917434271,-280.64437242,0.00010986,2]
[380983131,1755917434281,-177.8006136,0.00010986,2]
[380983132,1755917434291,-150.45409912,0.00010986,2]
[380983133,1755917434300,-245.02639888,0.00010986,2]
[380983134,1755917434310,-150.4882497,0.00010986,2]
[380983135,1755917434319,-153.14725349,0.00010986,2]
[380983136,1755917434329,-214.035939,0.00010986,2]
[380983137,1755917434339,-152.90008432,0.00010986,2]
[380983138,1755917434348,-151.45476826,0.00010989,2]
[380983139,1755917434358,-500.0,0.00010989,2]
[380983140,1755917434367,-386.81300509,0.00010993,2]
[380983141,1755917434377,-200.0,0.00010993,2]
[380983142,1755917434386,-151.0,0.00010993,2]
[380983143,1755917434396,-151.0,0.00010993,2]
[380983144,1755917434407,-151.0,0.00010993,2]
[380983145,1755917434416,-151.0,0.00010993,2]
[380983146,1755917434426,-151.0,0.00010993,2]
[380983147,1755917434436,-151.0,0.00010993,2]
[380983148,1755917434447,-151.0,0.00010993,2]
[380983149,1755917434457,-151.0,0.00010993,2]
[380983150,1755917434466,-151.0,0.00010993,2]